Cogmind - Beta 10 @@@ ROGUE MODE // 2020.09.19 @ 23:47:11 Player: DragoX Result: Destroyed by G-34 Mercenary with Small Laser Performance ------------- Evolutions (0) 0 Regions Visited (1) 200 Robots Destroyed (9) 45 Value Destroyed (111) 111 Prototype IDs (0) 0 Alien Tech Used (0) 0 Bonus (0) 0 TOTAL SCORE: 356 Bonus ------- None Cogmind --------- Core Integrity 0/250 Matter 122/300 Energy 125/125 System Corruption 3% Temperature Cool (6) Movement Flying (440) Ox5 Location -10/Materials Parts ------- > --- POWER (1) -------- Light Ion Engine > --- PROPULSION (2) --- Flight Unit > --- UTILITY (2) ------ Large Storage Unit Sensor Array > --- WEAPON (2) ------- Assault Rifle > --- INVENTORY (10) --- Light Ion Engine Light Ion Engine Large Storage Unit Medium Battery (200) Signal Interpreter Utility Shielding Spread Laser Spread Laser Maul Peak State ------------ > --- POWER ------------ Light Ion Engine > --- PROPULSION ------- Flight Unit Flight Unit > --- UTILITY ---------- Large Storage Unit Sensor Array > --- WEAPON ----------- Assault Rifle Grenade Launcher > --- INVENTORY -------- Light Ion Engine Light Ion Engine Large Storage Unit Medium Battery Signal Interpreter Utility Shielding Spread Laser Spread Laser [Rating: 8] Favorites ----------- Power Light Ion Engine Engine Light Ion Engine Propulsion Aluminum Leg Leg Aluminum Leg Flight Unit Flight Unit Utility Small Storage Unit Device Terrain Scanner Storage Small Storage Unit Weapon Medium Laser Energy Gun Medium Laser Ballistic Gun Assault Rifle Launcher Grenade Launcher Build | -11 -10 ------- Run | Scr Mat Slots Evolved . | . . Power . | . . Propulsion . | . . Utility . | . . Weapon . | . . Parts Attached 21 | 6 15 Power 2 | 1 1 Engine 2 | 1 1 Core . | . . Reactor . | . . Propulsion 4 | 2 2 Treads . | . . Leg 2 | 2 . Wheel . | . . Hover . | . . Flight 2 | . 2 Utility 5 | 1 4 Device 2 | . 2 Storage 3 | 1 2 Processor . | . . Hackware . | . . Protection . | . . Artifact . | . . Weapon 10 | 2 8 Energy Gun 2 | 2 . Energy Cannon . | . . Ballistic Gun 6 | . 6 Ballistic Cannon . | . . Launcher 2 | . 2 Special Weapon . | . . Impact Weapon . | . . Slashing Weapon . | . . Piercing Weapon . | . . Special Melee Weapon . | . . Unidentified Prototypes . | . . Parts Lost 6 | . 6 Power 1 | . 1 Propulsion 2 | . 2 Utility . | . . Weapon 3 | . 3 Highest Loss Streak 4 | . 4 Average Slot Usage (%) 97 | . 97 Engine 13 | . 13 Leg 19 | . 19 Flight 7 | . 7 Device 14 | . 14 Storage 14 | . 14 Energy Gun 19 | . 19 Ballistic Gun 4 | . 4 Launcher 2 | . 2 Naked Turns . | . . Heaviest Build 25 | 11 25 Greatest Support 20 | 20 20 Greatest Overweight (x) 3 | 1 3 Average Overweight (x) . | . . Largest Inventory Capacity 10 | 6 10 Average Capacity 6 | 5 6 Most Carried 9 | 5 9 Average Carried 4 | 2 4 Final Capacity 10 | 6 10 Final Carried 9 | 2 9 Class Distribution -------------------- 72% | Mutant 27% | Scavenger-Mutant Dominant Class ---------------- Mutant | -10/Materials Resources | -11 -10 ----------- Run | Scr Mat Matter Collected 307 | 239 68 Remotely . | . . Salvage Created 113 | . 113 Parts 18 | . 18 Haulers Intercepted . | . . Recyclers Shooed . | . . Parts Field Recycled . | . . Retrieved Matter . | . . Parts Self-Destructed . | . . Prevented . | . . Kills | -11 -10 ------- Run | Scr Mat Combat Hostiles Destroyed 5 | . 5 Guns 3 | . 3 AOE 2 | . 2 Classes Destroyed 5 | . 5 Worker 1 | . 1 Builder 2 | . 2 Watcher 1 | . 1 Swarmer 4 | . 4 Grunt 1 | . 1 Best Kill Streak 6 | . 6 Combat Bots Only 3 | . 3 Max Kills in Single Turn 3 | . 3 Gunslinging . | . . Exploded 2 | . 2 Melee . | . . Uniques/NPCs Destroyed . | . . Combat | -11 -10 -------- Run | Scr Mat Damage Taken 824 | . 824 Core 250 | . 250 Absorbed by Shields . | . . Core Remaining (%) 100 | 100 . Volleys Fired 25 | . 25 Largest 2 | . 2 Hottest 100 | . 100 Shots Fired 35 | . 35 Gun 32 | . 32 Cannon . | . . Launcher 3 | . 3 Special . | . . Kinetic 18 | . 18 Thermal 14 | . 14 Explosive 3 | . 3 Electromagnetic . | . . Robot Hit Streak 7 | . 7 Robot Miss Streak 4 | . 4 Penetration Max . | . . Secondary Targets 1 | . 1 Max Gunslinging Chain 1 | . 1 Shots Hit Robots 21 | . 21 Core Hits 16 | . 16 Critical Hits . | . . Critical Kills . | . . Critical Parts Destroyed . | . . Melee Attacks . | . . Impact . | . . Slashing . | . . Piercing . | . . Sneak Attacks . | . . Combat Hostiles . | . . Follow-up Attacks . | . . Damage Inflicted 570 | . 570 Guns 253 | . 253 Cannons . | . . Explosions 310 | . 310 Melee . | . . Ramming 7 | . 7 Kinetic 140 | . 140 Thermal 113 | . 113 Explosive 310 | . 310 Electromagnetic . | . . Impact . | . . Slashing . | . . Piercing . | . . Highest Corruption 3 | . 3 Average Corruption 2 | . 2 Corruption Purged . | . . Effects 7 | . 7 Message Errors 2 | . 2 Matter Fused 2 | . 2 Energy Discharges 1 | . 1 Data Loss (minor) 1 | . 1 Targeting Errors 1 | . 1 Overload Shots . | . . Overflow Damage 3 | . 3 Projectiles . | . . Explosions 3 | . 3 Melee . | . . Knockbacks . | . . Impact . | . . Kinetic . | . . Secondary . | . . Self-Inflicted Damage 48 | . 48 Shots 2 | . 2 Rammed 4 | . 4 Targets Rammed 6 | . 6 Kicked 2 | . 2 Crushed . | . . Highest Temperature 295 | . 295 Average Temperature 144 | . 144 Received Heat Transfer 201 | . 201 Effects 4 | . 4 Energy Bleed 3 | . 3 Interference 1 | . 1 Siege Activations . | . . Robots Corrupted . | . . Combat Hostiles . | . . Parts Fried . | . . Impact Corruptions . | . . Robots Melted . | . . Combat Hostiles . | . . Parts Melted 1 | . 1 Heat Transferred 333 | . 333 Parts Sabotaged . | . . Parts Stolen . | . . Parts Stripped . | . . Power Chain Reactions . | . . Missiles Intercepted . | . . Alert | -11 -10 ------- Run | Scr Mat Peak Influence 149 | . 149 Initial . | . . Average 28 | . 29 Maximum Alert Level . | . . Low Security (%) 100 | 100 100 Level 1 . | . . Level 2 . | . . Level 3 . | . . Level 4 . | . . Level 5 . | . . High Security . | . . Max Security . | . . Squads Dispatched 4 | . 4 Investigation 1 | . 1 Extermination . | . . Reinforcement 3 | . 3 Assault . | . . Garrison . | . . Intercept . | . . Construction Impeded . | . . Haulers Reinforced . | . . Stealth | -11 -10 --------- Run | Scr Mat Distress Signals 1 | . 1 Communications Jammed . | . . Distress Signals . | . . Times Spotted 16 | . 16 Peak Tracking Total 5 | . 5 Tactical Retreats 2 | . 2 Traps | -11 -10 ------- Run | Scr Mat Traps Triggered 3 | . 3 Indirectly . | . . Trap Hack Attempts . | . . Triggered . | . . Disarmed . | . . Reprogrammed . | . . Reused . | . . Traps Extracted . | . . Installed . | . . Triggered . | . . Machines | -11 -10 ---------- Run | Scr Mat Machines Disabled 1 | . 1 Max in Single Turn 1 | . 1 Machines Sabotaged . | . . Garrisons Compromised . | . . Overloaded Fab Kills . | . . Fab Network Shutdowns . | . . Hacking | -11 -10 --------- Run | Scr Mat Machines Accessed 2 | . 2 Terminals 2 | . 2 Fabricators . | . . Repair Stations . | . . Recycling Units . | . . Scanalyzers . | . . Garrison Access . | . . Total Hacks 3 | . 3 Successful 2 | . 2 Failed 1 | . 1 Catastrophic . | . . Database Lockouts . | . . Manual 3 | . 3 Terminals 3 | . 3 Fabricators . | . . Repair Stations . | . . Recycling Units . | . . Scanalyzers . | . . Garrison Access . | . . Terminal Hacks 1 | . 1 Branch Access Points 1 | . 1 Fabricator Hacks . | . . Repair Station Hacks . | . . Recycling Unit Hacks . | . . Scanalyzer . | . . Garrison Access Hacks . | . . Unauthorized Hacks 1 | . 1 Terminals 1 | . 1 Botnet 1 | . 1 Fabricators . | . . Repair Stations . | . . Recycling Units . | . . Scanalyzers . | . . Garrison Access . | . . Data Cores Recovered . | . . Used . | . . Hacking Detections 2 | . 2 Full Trace Events . | . . Feedback Events . | . . Feedback Blocked . | . . Robot Schematics Acquired . | . . Robots Built . | . . Matter . | . . Time . | . . Total Robot Build Rating . | . . Part Schematics Acquired . | . . Parts Built . | . . Matter . | . . Time . | . . Total Part Build Rating . | . . Parts Repaired . | . . Time . | . . Parts Recycled . | . . Recycled Matter . | . . Retrieved Matter . | . . Retrieved Components . | . . Parts Scanalyzed . | . . Part Schematics Acquired . | . . Parts Damaged . | . . Bothacking | -11 -10 ------------ Run | Scr Mat Used RIF Installer . | . . Robots Hacked . | . . Non-combat . | . . Combat . | . . Robot Hacks Applied . | . . Relay Couplers Released . | . . Robots Rewired . | . . Allies Hacked . | . . Hacks Repelled . | . . Allies | -11 -10 -------- Run | Scr Mat Total Allies . | . . Largest Group . | . . Highest-Rated Group . | . . Highest-Rated Ally . | . . Total Orders . | . . Ally Attacks . | . . Total Damage . | . . Kills . | . . Allies Corrupted . | . . Allies Melted . | . . Intel | -11 -10 ------- Run | Scr Mat Robot Analysis Total . | . . Derelict Logs Recovered . | . . Drone Launches . | . . Drone Recoveries . | . . Exploration | -11 -10 ------------- Run | Scr Mat Turns Passed 1746 | 60 1686 Spaces Moved 416 | 43 373 Core 11 | 11 . Treads . | . . Legs 126 | 32 94 Wheels . | . . Hover . | . . Flight 279 | . 279 Fastest Speed 37 | 50 37 Average Speed 127 | 107 129 Slowest Speed 277 | 120 277 Overloaded Moves . | . . Propulsion Burnouts . | . . Robots Hopped . | . . Cave-ins Triggered . | . . Exploration Rate (%) 35 | 4 66 Regions Visited 1 Branch Regions . Pre-discovered Areas . | . . Known Exits Taken . | . . Unknown Exits Taken 1 | 1 . Scrap Searched . | . . Spaces Dug . | . . Terrain Destroyed 47 | . 47 Melee . | . . Projectile . | . . AOE 47 | . 47 Terrain Rammed . | . . Walls Destroyed . | . . Machines Disabled . | . . Actions | -11 -10 --------- Run | Scr Mat Total 1597 | 56 1541 Wait 1096 | . 1096 Move 415 | 42 373 Hop . | . . Pick Up 25 | 8 17 Fast Attach 2 | . 2 Attach 13 | 6 7 Detach 1 | . 1 Swap 6 | . 6 Drop 8 | . 8 Fire 25 | . 25 Melee . | . . Ram . | . . Kick 6 | . 6 Crush . | . . Escape Stasis . | . . Rewire . | . . Trap . | . . Miscellaneous . | . . Route ------- -11/Scrapyard -10/Materials (discovered 3 exits: [*Mat x2] / *Min) History --------- Turn | Location | Event 23 | -11/Scrapyard | Discovered new exit (range 15) 61 | -11/Scrapyard | Entered Materials 317 | -10/Materials | Build established: Mutant 1251 | -10/Materials | Core integrity fell below 50% 1283 | -10/Materials | Lost 4 parts (1p1n2w) 1382 | -10/Materials | Core integrity fell below 20% 1391 | -10/Materials | Discovered new exit (range 13) 1460 | -10/Materials | Identified exit to Mines 1520 | -10/Materials | Discovered new exit (range 15) 1578 | -10/Materials | Build established: Scavenger-Mutant 1747 | -10/Materials | Destroyed by G-34 Mercenary with Small Laser Last Messages --------------- 01574_ U-05 Engineer builds a Wall. 01577_ The unstable cave ceiling collapses. 01578_ U-05 Engineer builds a Wall. 01588_ System corrupted: Matter fused (-10). 01597_ U-05 Engineer lays Concrete. 01600_ U-05 Engineer builds a Wall. 01608_ System corrupted: Matter fused (-7). 01640_ 5OQT%M&:Z2V5CT%EPCR2KX>RGFEVARTXXBCDG6= 01691_ W-16 Scout sends out distress signal. 01701_ Dropped Assault Rifle. 01702_ Acquired Spread Laser. 01707_ System corrupted: Component data lost. 01715_ Acquired Maul. 01739_ System corrupted: Grenade Launcher targeting data glitched. 01740_ Grenade Launcher destroyed. 01744_ Flight Unit destroyed. Map ----- +----------------------------------------------------+ | ?????????????????? ???????? ????????????????? | | ?????????????????###/#?????###+###???????????????? | | ????????????????# ##### #???????????????? | | ""??"????????????# ! #???????#####?### | | """ ??????????? ?+ ######### #? | | ??"??????????????# """ < # | | ?? ????????????# """ # = ####### # "" | | ? ? ???????????# """ ####+#####?????# + "" | | ####??????????????# ## # #?????# # "" | | #?#?????????????# ## ## ?????# # | | #?#???########### ## # ##????# #?### | | " #?#???# * # ##!= # ####### #???? | | " ??###?# """ # [#[! # # #???? | | ? ?#????# """"" # * [! + # # #???? | | ?####???# """"" + ![! # """ # "" ! / #???? | | ######### """"" # ###### """ ## "Y #^ #???? | | + """ # ?#????# """ ## "" # #???? | | ######### # #????# ## # #???? | | #?##?#??# # #????#[ /######### #???? | | ##????############# ############???????# #???? | | ##????# *#???##!!uu //#??????????????# #???? | | #????# #???#! u / #??????????????# #???? | | #????# #?###! ]]#??????????????# #???? | | ##?#?#= #??# ]]#??????????????# #???? | | ##### #??# ! [ #??????????????# #???? | | # ! ????# !! g[[@#??????????????# #???? | | ### # ????# ##??????????????# #???? | | ###?# ##+#????##" g ##????????????????# #???? | | ??#?# #????##"" #?????????????????# #???? | | ##??# #?????#|| #?????????????????# #???? | | #??# #?????#"" > #???????########### ##### | | #??# #?????#!! #???????# # # | | #??# #?????#"" #???????# !! # #" "" | | #### ####??#" #???????# ![ # #T "" | | + #???### ##???????# ! # #" "" | | ####### #?????# #????????# + + | | ######?# ??? +????????# "T" # # "" | | #?? #????????# """ # # "" | | #?? ##### ?????????# # # "" | | " #?? #?????####????????????########### # | | " #?? #????????????????????????# # ##### | | " ##?+#????????????????????????# # #???? | | # ???????????????????????????# + #???? | | #?? ????????????????????????# # #???? | | " # ????????????????????????# # #???? | | " + ?????????????????????????# ?# #???? | | " # "??????????????????????######?# ###???? | | #?? ??????????????????????????????# #?????? | | #???? ??????????????????????????????# #?????? | | " #???????????????????????????????????# #?????? | +----------------------------------------------------+ Best States ------------- Heat Dissipation 25 Energy Generation 10 Energy Capacity 125 Matter Stores 300 Matter Capacity 300 Sight Range 16 Robot Scan Range 10 Terrain Scan Range 14 Terrain Scan Density 10 Evasion (%) 50 Item Schematics ----------------- None Robot Schematics ------------------ None Fabricated ------------ Nothing Alien Tech Used ----------------- None Achievements -------------- None Challenges ------------ None Game ------ Seed RecoilCorruptionMaul Manual? 0 Play Time 00:15:05 Cumulative 1.3 hours Start 2020.09.19 @ 23:34:18 End 2020.09.19 @ 23:47:11 Sessions 1 Manual Loads 0 Difficulty Rogue Special Mode None Game No. 5 Rogue 5 Adventurer 0 Explorer 0 Win Type - Total 0 Types 0/0/0/0/0/0/0/0/0 Lore% 0 Gallery% 2 Achievement% 4 Wizard Run 0 Options --------- ASCII 0 Keyboard 0 Movement Mouse Keybinds 0 Fullscreen 1 Font 18/Cog Map View 76x50 Tactical HUD 1 Map Filters NONE Filters NONE Steam 0 RUN: d67efd20-3d9b-4b78-a535-51241f575805